[Event "Early-Titled-Tuesday-Blitz-November-28-2023"]
[Site "Chess.com"]
[Date "2023.11.28"]
[Round "5"]
[White "RodokininEV"]
[Black "ATM622"]
[Result "1-0"]
[WhiteElo "2611"]
[BlackElo "2454"]
[TimeControl "180+1"]
[EndTime "8:56:07 PST"]
[Termination "RodokininEV won by resignation"]

1. d4 {[%clk 0:02:59.8]} 1... Nf6 {[%clk 0:02:59.3]} 2. Nf3 {[%clk 0:02:49.9]}
2... b6 {[%clk 0:02:57.3]} 3. g3 {[%clk 0:02:50.8]} 3... Bb7 {[%clk 0:02:57.2]}
4. Bg2 {[%clk 0:02:50.8]} 4... g6 {[%clk 0:02:57.4]} 5. O-O {[%clk 0:02:50.6]}
5... Bg7 {[%clk 0:02:57.7]} 6. c4 {[%clk 0:02:50.6]} 6... e6 {[%clk 0:02:55.6]}
7. Nc3 {[%clk 0:02:50.2]} 7... O-O {[%clk 0:02:54.3]} 8. Qc2 {[%clk 0:02:49.3]}
8... c5 {[%clk 0:02:53.8]} 9. d5 {[%clk 0:02:47.4]} 9... exd5 {[%clk 0:02:52.8]}
10. Nh4 {[%clk 0:02:44]} 10... Nc6 {[%clk 0:02:51.2]} 11. cxd5 {[%clk
0:02:42.5]} 11... Nb4 {[%clk 0:02:32.9]} 12. Qd1 {[%clk 0:02:42.1]} 12... d6
{[%clk 0:02:25.4]} 13. e4 {[%clk 0:02:37.9]} 13... Re8 {[%clk 0:02:23.9]} 14.
Re1 {[%clk 0:02:34.9]} 14... Qd7 {[%clk 0:02:15.6]} 15. a3 {[%clk 0:02:32.7]}
15... Na6 {[%clk 0:02:15.3]} 16. Nf3 {[%clk 0:02:24.1]} 16... Nc7 {[%clk
0:02:10.7]} 17. a4 {[%clk 0:02:18.2]} 17... Ng4 {[%clk 0:02:07.1]} 18. Nd2
{[%clk 0:02:15.3]} 18... Bd4 {[%clk 0:02:00.4]} 19. Rf1 {[%clk 0:02:12.8]} 19...
Ba6 {[%clk 0:01:33.1]} 20. Ne2 {[%clk 0:02:11.8]} 20... Nxf2 {[%clk 0:01:19.4]}
21. Rxf2 {[%clk 0:02:11.6]} 21... Bxf2+ {[%clk 0:01:19.1]} 22. Kxf2 {[%clk
0:02:12.5]} 22... Nxd5 {[%clk 0:01:19]} 23. Nc3 {[%clk 0:01:53.8]} 23... Nb4
{[%clk 0:01:18.4]} 24. Nf3 {[%clk 0:01:48]} 24... Nd3+ {[%clk 0:01:13.3]} 25.
Kg1 {[%clk 0:01:48.1]} 25... Rad8 {[%clk 0:01:07.2]} 26. Bg5 {[%clk 0:01:44.9]}
26... Rc8 {[%clk 0:01:01.1]} 27. Nd5 {[%clk 0:01:45]} 27... Kg7 {[%clk
0:00:50.5]} 28. Bf6+ {[%clk 0:01:42.7]} 28... Kg8 {[%clk 0:00:24.8]} 29. Qd2
{[%clk 0:01:43.6]} 29... Qh3 {[%clk 0:00:05.7]} 30. Bxh3 {[%clk 0:01:40]} 1-0

[Event "Early-Titled-Tuesday-Blitz-November-28-2023"]
[Site "Chess.com"]
[Date "2023.11.28"]
[Round "5"]
[White "Actuary44"]
[Black "Leo_C"]
[Result "0-1"]
[WhiteElo "2449"]
[BlackElo "2611"]
[TimeControl "180+1"]
[EndTime "8:56:10 PST"]
[Termination "Leo_C won by resignation"]

1. e4 {[%clk 0:03:00.9]} 1... e5 {[%clk 0:02:59.1]} 2. Nf3 {[%clk 0:03:00.8]}
2... Nc6 {[%clk 0:02:58.6]} 3. Bb5 {[%clk 0:03:01.5]} 3... a6 {[%clk 0:02:58.7]}
4. Ba4 {[%clk 0:03:02]} 4... Nf6 {[%clk 0:02:58.7]} 5. d3 {[%clk 0:03:01.9]}
5... b5 {[%clk 0:02:52.6]} 6. Bb3 {[%clk 0:03:01.6]} 6... Be7 {[%clk 0:02:53.2]}
7. a4 {[%clk 0:03:01.9]} 7... Rb8 {[%clk 0:02:49.2]} 8. axb5 {[%clk 0:03:01.4]}
8... axb5 {[%clk 0:02:49.1]} 9. O-O {[%clk 0:03:01.4]} 9... d6 {[%clk
0:02:47.8]} 10. h3 {[%clk 0:03:01]} 10... O-O {[%clk 0:02:47.1]} 11. Bg5 {[%clk
0:03:01.1]} 11... h6 {[%clk 0:02:46.9]} 12. Bh4 {[%clk 0:03:00.5]} 12... Be6
{[%clk 0:02:46.2]} 13. Nbd2 {[%clk 0:02:46.2]} 13... d5 {[%clk 0:02:41.3]} 14.
Re1 {[%clk 0:02:38]} 14... dxe4 {[%clk 0:02:37.1]} 15. Nxe4 {[%clk 0:02:07.8]}
15... Bxb3 {[%clk 0:02:28.3]} 16. cxb3 {[%clk 0:02:00.3]} 16... Nxe4 {[%clk
0:02:20.4]} 17. Bxe7 {[%clk 0:01:54.5]} 17... Qxe7 {[%clk 0:02:17.2]} 18. Rxe4
{[%clk 0:01:53.2]} 18... Rfd8 {[%clk 0:02:12.2]} 19. Ra6 {[%clk 0:01:28.7]}
19... Nb4 {[%clk 0:02:06.8]} 20. Rxe5 {[%clk 0:01:24.3]} 20... Qf8 {[%clk
0:01:53.5]} 21. Ra7 {[%clk 0:01:18.1]} 21... Nc6 {[%clk 0:01:50.3]} 22. Rxc7
{[%clk 0:01:18]} 22... Nxe5 {[%clk 0:01:50.3]} 23. Nxe5 {[%clk 0:01:18.9]} 23...
Qd6 {[%clk 0:01:50]} 24. Nxf7 {[%clk 0:00:39.5]} 24... Qxc7 {[%clk 0:01:49.3]}
25. Nxd8 {[%clk 0:00:39.6]} 25... Rxd8 {[%clk 0:01:49.3]} 26. Qf3 {[%clk
0:00:30.2]} 26... Qe5 {[%clk 0:01:42.8]} 27. g3 {[%clk 0:00:05.9]} 27... Rf8
{[%clk 0:01:36.9]} 28. Qc6 {[%clk 0:00:04.9]} 28... Qe1+ {[%clk 0:01:35.8]} 0-1

[Event "Early-Titled-Tuesday-Blitz-November-28-2023"]
[Site "Chess.com"]
[Date "2023.11.28"]
[Round "5"]
[White "Haykoooo0o"]
[Black "Valy02chess"]
[Result "1-0"]
[WhiteElo "2420"]
[BlackElo "2251"]
[TimeControl "180+1"]
[EndTime "8:56:12 PST"]
[Termination "Haykoooo0o won by checkmate"]

1. d3 {[%clk 0:02:58.1]} 1... c5 {[%clk 0:02:57.4]} 2. g3 {[%clk 0:02:53.9]}
2... d5 {[%clk 0:02:55.1]} 3. Bg2 {[%clk 0:02:54.4]} 3... Nc6 {[%clk 0:02:55.7]}
4. Nd2 {[%clk 0:02:52]} 4... g6 {[%clk 0:02:55.7]} 5. e4 {[%clk 0:02:52.6]} 5...
dxe4 {[%clk 0:02:54.7]} 6. dxe4 {[%clk 0:02:51.4]} 6... Bg7 {[%clk 0:02:55]} 7.
Ngf3 {[%clk 0:02:52]} 7... Nf6 {[%clk 0:02:52.4]} 8. Bf1 {[%clk 0:02:51.8]} 8...
O-O {[%clk 0:02:49.6]} 9. Bg2 {[%clk 0:02:50.5]} 9... Bg4 {[%clk 0:02:06.9]} 10.
O-O {[%clk 0:02:43.6]} 10... Qc8 {[%clk 0:02:01.7]} 11. Re1 {[%clk 0:02:41.8]}
11... Rd8 {[%clk 0:01:47.6]} 12. c3 {[%clk 0:02:39.4]} 12... Ne5 {[%clk
0:01:44.8]} 13. Qc2 {[%clk 0:02:36.7]} 13... Nd3 {[%clk 0:01:18.2]} 14. Rf1
{[%clk 0:02:29.4]} 14... b5 {[%clk 0:01:08.1]} 15. a4 {[%clk 0:02:18.4]} 15...
a6 {[%clk 0:01:01.3]} 16. axb5 {[%clk 0:02:13.9]} 16... axb5 {[%clk 0:01:01.1]}
17. Rxa8 {[%clk 0:02:14.8]} 17... Qxa8 {[%clk 0:01:01.4]} 18. e5 {[%clk
0:02:15.6]} 18... Nxc1 {[%clk 0:00:51.9]} 19. Rxc1 {[%clk 0:02:10.1]} 19... Nd7
{[%clk 0:00:43.7]} 20. Re1 {[%clk 0:02:05.1]} 20... Bf5 {[%clk 0:00:39.7]} 21.
Qb3 {[%clk 0:02:04]} 21... Qa6 {[%clk 0:00:34.2]} 22. Qd5 {[%clk 0:01:51.7]}
22... Be6 {[%clk 0:00:31.4]} 23. Qe4 {[%clk 0:01:51.4]} 23... Nxe5 {[%clk
0:00:28]} 24. Nxe5 {[%clk 0:01:51.1]} 24... Bxe5 {[%clk 0:00:25.6]} 25. Qxe5
{[%clk 0:01:52]} 25... Rxd2 {[%clk 0:00:25.4]} 26. Qxc5 {[%clk 0:01:52.1]} 26...
Rxb2 {[%clk 0:00:20.6]} 27. Qxe7 {[%clk 0:01:50.6]} 27... Qb6 {[%clk 0:00:20.6]}
28. Qf6 {[%clk 0:01:50.1]} 28... b4 {[%clk 0:00:14]} 29. c4 {[%clk 0:01:46.3]}
29... Rc2 {[%clk 0:00:11.3]} 30. h4 {[%clk 0:01:45.6]} 30... Rxc4 {[%clk
0:00:10.3]} 31. h5 {[%clk 0:01:45.2]} 31... Rc8 {[%clk 0:00:09.6]} 32. h6 {[%clk
0:01:44.4]} 32... b3 {[%clk 0:00:03.5]} 33. Qg7# {[%clk 0:01:44.1]} 1-0

[Event "Early-Titled-Tuesday-Blitz-November-28-2023"]
[Site "Chess.com"]
[Date "2023.11.28"]
[Round "5"]
[White "kingofthenil"]
[Black "jefferyx"]
[Result "1-0"]
[WhiteElo "2714"]
[BlackElo "2995"]
[TimeControl "180+1"]
[EndTime "8:56:14 PST"]
[Termination "kingofthenil won by checkmate"]

1. e4 {[%clk 0:03:00.9]} 1... c5 {[%clk 0:02:50.3]} 2. Nf3 {[%clk 0:02:59.5]}
2... d6 {[%clk 0:02:50.8]} 3. d4 {[%clk 0:02:57.1]} 3... cxd4 {[%clk 0:02:51.7]}
4. Nxd4 {[%clk 0:02:57.8]} 4... Nf6 {[%clk 0:02:52.1]} 5. Nc3 {[%clk 0:02:58.4]}
5... a6 {[%clk 0:02:52.6]} 6. g3 {[%clk 0:02:55]} 6... g6 {[%clk 0:02:52.1]} 7.
Bg2 {[%clk 0:02:48.2]} 7... Bg7 {[%clk 0:02:52.5]} 8. O-O {[%clk 0:02:48.5]}
8... O-O {[%clk 0:02:53.1]} 9. h3 {[%clk 0:02:48.5]} 9... Nc6 {[%clk 0:02:53.4]}
10. Nxc6 {[%clk 0:02:48.2]} 10... bxc6 {[%clk 0:02:54.3]} 11. e5 {[%clk
0:02:48.8]} 11... dxe5 {[%clk 0:02:54.3]} 12. Qxd8 {[%clk 0:02:36.9]} 12... Rxd8
{[%clk 0:02:55.2]} 13. Bxc6 {[%clk 0:02:36.7]} 13... Bxh3 {[%clk 0:02:55.2]} 14.
Bxa8 {[%clk 0:02:36.3]} 14... Bxf1 {[%clk 0:02:55.2]} 15. Kxf1 {[%clk
0:02:02.8]} 15... Rxa8 {[%clk 0:02:54.8]} 16. b3 {[%clk 0:01:59.9]} 16... Rc8
{[%clk 0:02:48.3]} 17. Bb2 {[%clk 0:01:59.8]} 17... Kf8 {[%clk 0:02:47.3]} 18.
Rc1 {[%clk 0:01:55.8]} 18... Ke8 {[%clk 0:02:45.2]} 19. Na4 {[%clk 0:01:55.4]}
19... Bh6 {[%clk 0:02:45.1]} 20. Re1 {[%clk 0:01:48.2]} 20... Rxc2 {[%clk
0:02:43.7]} 21. Rxe5 {[%clk 0:01:47.3]} 21... Ng4 {[%clk 0:02:06.3]} 22. Re2
{[%clk 0:01:45.8]} 22... Nh2+ {[%clk 0:02:06.5]} 23. Ke1 {[%clk 0:01:46.1]}
23... Rc6 {[%clk 0:02:05.9]} 24. Re4 {[%clk 0:01:29.6]} 24... f5 {[%clk
0:02:00]} 25. Rc4 {[%clk 0:01:20.3]} 25... Re6+ {[%clk 0:01:50.2]} 26. Kd1
{[%clk 0:01:19.1]} 26... Ng4 {[%clk 0:01:51.1]} 27. Bd4 {[%clk 0:01:13.5]} 27...
Rd6 {[%clk 0:01:51.5]} 28. Ke2 {[%clk 0:01:07.7]} 28... e5 {[%clk 0:01:51.4]}
29. Bc3 {[%clk 0:01:06.6]} 29... e4 {[%clk 0:01:51.5]} 30. Rc8+ {[%clk
0:00:58.5]} 30... Kd7 {[%clk 0:01:48.6]} 31. Rh8 {[%clk 0:00:57.1]} 31... Kc6
{[%clk 0:01:48.9]} 32. Rxh7 {[%clk 0:00:51.3]} 32... Rd3 {[%clk 0:01:48.2]} 33.
Ra7 {[%clk 0:00:43.3]} 33... Kb5 {[%clk 0:01:47]} 34. Rb7+ {[%clk 0:00:41.9]}
34... Kc6 {[%clk 0:01:47.3]} 35. Rb6+ {[%clk 0:00:42.1]} 35... Kd5 {[%clk
0:01:26.6]} 36. Rxg6 {[%clk 0:00:41.9]} 36... Rf3 {[%clk 0:01:22.3]} 37. Nb6+
{[%clk 0:00:35.2]} 37... Kc5 {[%clk 0:01:22.2]} 38. b4+ {[%clk 0:00:35.4]} 38...
Kb5 {[%clk 0:01:21.3]} 39. a4# {[%clk 0:00:35.9]} 1-0

[Event "Early-Titled-Tuesday-Blitz-November-28-2023"]
[Site "Chess.com"]
[Date "2023.11.28"]
[Round "5"]
[White "Iball95"]
[Black "marcodobrikov"]
[Result "0-1"]
[WhiteElo "2833"]
[BlackElo "2625"]
[TimeControl "180+1"]
[EndTime "8:56:21 PST"]
[Termination "marcodobrikov won on time"]

1. e4 {[%clk 0:02:30.3]} 1... Nc6 {[%clk 0:02:58.7]} 2. Nc3 {[%clk 0:02:29.5]}
2... e5 {[%clk 0:02:58.7]} 3. Nf3 {[%clk 0:02:30.1]} 3... Nf6 {[%clk 0:02:58.5]}
4. Bb5 {[%clk 0:02:30.7]} 4... Bd6 {[%clk 0:02:58]} 5. a3 {[%clk 0:02:30.7]}
5... a6 {[%clk 0:02:57.4]} 6. Bc4 {[%clk 0:02:30.5]} 6... b5 {[%clk 0:02:58.1]}
7. Ba2 {[%clk 0:02:29.9]} 7... Bb7 {[%clk 0:02:58.7]} 8. d3 {[%clk 0:02:29.8]}
8... O-O {[%clk 0:02:59]} 9. g4 {[%clk 0:02:25.1]} 9... Bc5 {[%clk 0:02:47.4]}
10. Rg1 {[%clk 0:02:17.9]} 10... d6 {[%clk 0:02:42]} 11. g5 {[%clk 0:02:14.4]}
11... Nd7 {[%clk 0:02:40.7]} 12. h4 {[%clk 0:02:12.6]} 12... Nd4 {[%clk
0:02:40.7]} 13. h5 {[%clk 0:02:11.5]} 13... Kh8 {[%clk 0:02:31.2]} 14. Be3
{[%clk 0:02:02.4]} 14... f5 {[%clk 0:02:31]} 15. gxf6 {[%clk 0:01:45]} 15...
Qxf6 {[%clk 0:02:30.5]} 16. Nh2 {[%clk 0:01:27.3]} 16... Qh4 {[%clk 0:01:42.7]}
17. Rg2 {[%clk 0:00:40.6]} 17... Nf6 {[%clk 0:01:32.8]} 18. Bxd4 {[%clk
0:00:19.7]} 18... Bxd4 {[%clk 0:01:31.5]} 19. Qd2 {[%clk 0:00:16.6]} 19... Nxh5
{[%clk 0:01:26.4]} 20. O-O-O {[%clk 0:00:08.2]} 20... Rxf2 {[%clk 0:01:18.7]}
21. Rxf2 {[%clk 0:00:07.6]} 21... Qxf2 {[%clk 0:01:19.6]} 0-1

[Event "Early-Titled-Tuesday-Blitz-November-28-2023"]
[Site "Chess.com"]
[Date "2023.11.28"]
[Round "5"]
[White "jens1102"]
[Black "ActorXu"]
[Result "0-1"]
[WhiteElo "2624"]
[BlackElo "2840"]
[TimeControl "180+1"]
[EndTime "8:56:26 PST"]
[Termination "ActorXu won by resignation"]

1. c4 {[%clk 0:02:54.2]} 1... e5 {[%clk 0:02:59.1]} 2. Nc3 {[%clk 0:02:54.1]}
2... Bb4 {[%clk 0:02:57.3]} 3. Nd5 {[%clk 0:02:51.8]} 3... a5 {[%clk 0:02:55.3]}
4. Nf3 {[%clk 0:02:47.6]} 4... d6 {[%clk 0:02:51.6]} 5. g3 {[%clk 0:02:46]} 5...
c6 {[%clk 0:02:49.9]} 6. Nxb4 {[%clk 0:02:42.8]} 6... axb4 {[%clk 0:02:50.8]} 7.
Bg2 {[%clk 0:02:43.2]} 7... Nf6 {[%clk 0:02:50.4]} 8. O-O {[%clk 0:02:43.4]}
8... O-O {[%clk 0:02:48.4]} 9. d3 {[%clk 0:02:41.5]} 9... c5 {[%clk 0:02:46.5]}
10. Bg5 {[%clk 0:02:27.8]} 10... Nc6 {[%clk 0:02:45.3]} 11. e3 {[%clk
0:02:27.4]} 11... h6 {[%clk 0:02:44.2]} 12. Bxf6 {[%clk 0:02:26.8]} 12... Qxf6
{[%clk 0:02:45.1]} 13. Qe2 {[%clk 0:02:16.8]} 13... Be6 {[%clk 0:02:45]} 14. Nd2
{[%clk 0:02:12.5]} 14... Ra6 {[%clk 0:02:42.8]} 15. Ne4 {[%clk 0:02:10]} 15...
Qe7 {[%clk 0:02:42.4]} 16. f4 {[%clk 0:02:10.9]} 16... f5 {[%clk 0:02:36.1]} 17.
Nd2 {[%clk 0:01:59]} 17... Rfa8 {[%clk 0:02:34.2]} 18. Bd5 {[%clk 0:01:42.7]}
18... Rxa2 {[%clk 0:02:24.2]} 19. Rxa2 {[%clk 0:01:34.2]} 19... Rxa2 {[%clk
0:02:25.1]} 20. fxe5 {[%clk 0:01:33]} 20... Nxe5 {[%clk 0:02:19.6]} 21. d4
{[%clk 0:01:26.2]} 21... Nf7 {[%clk 0:02:11.5]} 22. Nb3 {[%clk 0:01:07]} 22...
Bxd5 {[%clk 0:01:46.5]} 23. cxd5 {[%clk 0:01:07.9]} 23... Ng5 {[%clk 0:01:39.4]}
24. dxc5 {[%clk 0:00:58.8]} 24... dxc5 {[%clk 0:01:39]} 25. Rxf5 {[%clk
0:00:56.5]} 25... Qe4 {[%clk 0:01:31.1]} 26. Rxg5 {[%clk 0:00:35.2]} 26... hxg5
{[%clk 0:01:28]} 27. d6 {[%clk 0:00:31.1]} 27... Qb1+ {[%clk 0:01:18.8]} 28. Kf2
{[%clk 0:00:30.5]} 28... Qxb2 {[%clk 0:01:06.8]} 29. Nd2 {[%clk 0:00:24]} 29...
Qxd2 {[%clk 0:01:06.3]} 0-1

[Event "Early-Titled-Tuesday-Blitz-November-28-2023"]
[Site "Chess.com"]
[Date "2023.11.28"]
[Round "5"]
[White "dmosesov"]
[Black "angryspacevoid"]
[Result "0-1"]
[WhiteElo "2582"]
[BlackElo "2477"]
[TimeControl "180+1"]
[EndTime "8:56:29 PST"]
[Termination "angryspacevoid won on time"]

1. Nf3 {[%clk 0:03:00.9]} 1... d5 {[%clk 0:02:53.4]} 2. c4 {[%clk 0:03:00.9]}
2... d4 {[%clk 0:02:52.9]} 3. b4 {[%clk 0:03:00.1]} 3... g5 {[%clk 0:02:51.2]}
4. h3 {[%clk 0:02:55]} 4... Bg7 {[%clk 0:02:49.9]} 5. d3 {[%clk 0:02:22.7]} 5...
h6 {[%clk 0:02:47.6]} 6. a4 {[%clk 0:02:21.6]} 6... c5 {[%clk 0:02:45.2]} 7.
bxc5 {[%clk 0:02:13.4]} 7... Na6 {[%clk 0:02:42]} 8. Nbd2 {[%clk 0:02:09.4]}
8... Nf6 {[%clk 0:02:39.7]} 9. Bb2 {[%clk 0:01:57.1]} 9... Nh5 {[%clk
0:02:25.7]} 10. Nb3 {[%clk 0:01:50]} 10... e5 {[%clk 0:02:07.4]} 11. a5 {[%clk
0:01:25]} 11... Qc7 {[%clk 0:02:04.4]} 12. Ba3 {[%clk 0:01:02.3]} 12... O-O
{[%clk 0:02:01]} 13. g4 {[%clk 0:00:41.1]} 13... Nf4 {[%clk 0:01:59.9]} 14. h4
{[%clk 0:00:40.6]} 14... f6 {[%clk 0:01:47.1]} 15. hxg5 {[%clk 0:00:37.5]} 15...
fxg5 {[%clk 0:01:37.4]} 16. e3 {[%clk 0:00:20.4]} 16... dxe3 {[%clk 0:01:32.2]}
17. fxe3 {[%clk 0:00:21.3]} 17... Ng6 {[%clk 0:01:25]} 18. Be2 {[%clk
0:00:17.1]} 18... Bxg4 {[%clk 0:01:20.5]} 19. Rg1 {[%clk 0:00:10.8]} 19... Bxf3
{[%clk 0:01:06]} 20. Bxf3 {[%clk 0:00:11.7]} 20... e4 {[%clk 0:01:06.6]} 21.
Bxe4 {[%clk 0:00:11.9]} 21... Bc3+ {[%clk 0:01:06.6]} 22. Ke2 {[%clk 0:00:10.7]}
22... Qh2+ {[%clk 0:01:06.6]} 23. Rg2 {[%clk 0:00:01.9]} 23... Qh5+ {[%clk
0:01:06.4]} 0-1

[Event "Early-Titled-Tuesday-Blitz-November-28-2023"]
[Site "Chess.com"]
[Date "2023.11.28"]
[Round "5"]
[White "mbachez"]
[Black "Arvids_Andrejevs"]
[Result "1-0"]
[WhiteElo "2574"]
[BlackElo "2393"]
[TimeControl "180+1"]
[EndTime "8:56:29 PST"]
[Termination "mbachez won by resignation"]

1. e4 {[%clk 0:02:56.2]} 1... c6 {[%clk 0:02:55.2]} 2. Nf3 {[%clk 0:02:53.8]}
2... d5 {[%clk 0:02:56.1]} 3. exd5 {[%clk 0:02:53.5]} 3... cxd5 {[%clk
0:02:56.3]} 4. Ne5 {[%clk 0:02:54.1]} 4... Nd7 {[%clk 0:02:51.3]} 5. d4 {[%clk
0:02:52.8]} 5... Nxe5 {[%clk 0:02:38.2]} 6. dxe5 {[%clk 0:02:52.7]} 6... e6
{[%clk 0:02:38.8]} 7. Bd3 {[%clk 0:02:51.7]} 7... Bd7 {[%clk 0:02:36.8]} 8. O-O
{[%clk 0:02:51.5]} 8... Bc5 {[%clk 0:02:35.6]} 9. Qg4 {[%clk 0:02:50.1]} 9...
Bf8 {[%clk 0:02:33.3]} 10. Nd2 {[%clk 0:02:48]} 10... Ne7 {[%clk 0:02:33.4]} 11.
Nf3 {[%clk 0:02:47.4]} 11... g6 {[%clk 0:02:33.8]} 12. Bg5 {[%clk 0:02:40.3]}
12... Bg7 {[%clk 0:02:26.8]} 13. Rfe1 {[%clk 0:02:32.3]} 13... Qc7 {[%clk
0:01:59.3]} 14. Bf6 {[%clk 0:02:29.7]} 14... Bxf6 {[%clk 0:01:56.7]} 15. exf6
{[%clk 0:02:28.9]} 15... Nc6 {[%clk 0:01:54.7]} 16. b4 {[%clk 0:02:24]} 16... h5
{[%clk 0:01:53.3]} 17. Qh4 {[%clk 0:02:22.7]} 17... O-O-O {[%clk 0:01:21.2]} 18.
b5 {[%clk 0:02:20]} 18... Na5 {[%clk 0:01:21.4]} 19. Ne5 {[%clk 0:02:19.2]}
19... Rhf8 {[%clk 0:01:00.7]} 20. Qb4 {[%clk 0:02:16.9]} 20... Nc4 {[%clk
0:00:59.3]} 21. Bxc4 {[%clk 0:02:10.7]} 21... dxc4 {[%clk 0:01:00.2]} 22. a4
{[%clk 0:02:01.4]} 22... Kb8 {[%clk 0:00:45.6]} 23. a5 {[%clk 0:02:00.5]} 23...
Bc8 {[%clk 0:00:26.2]} 24. b6 {[%clk 0:01:45]} 24... Qd6 {[%clk 0:00:26]} 25.
bxa7+ {[%clk 0:01:25.8]} 25... Kxa7 {[%clk 0:00:25.3]} 26. Qxc4 {[%clk
0:01:21.6]} 26... Qa6 {[%clk 0:00:20.5]} 27. Qc5+ {[%clk 0:01:20.1]} 27... Ka8
{[%clk 0:00:19.1]} 28. Nc4 {[%clk 0:01:19.5]} 28... Bd7 {[%clk 0:00:17.3]} 29.
Nb6+ {[%clk 0:01:19.3]} 29... Kb8 {[%clk 0:00:18]} 30. Nxd7+ {[%clk 0:01:18.8]}
30... Rxd7 {[%clk 0:00:18.3]} 31. Qxf8+ {[%clk 0:01:18.4]} 1-0

[Event "Early-Titled-Tuesday-Blitz-November-28-2023"]
[Site "Chess.com"]
[Date "2023.11.28"]
[Round "5"]
[White "karinachess1"]
[Black "kuanysh1981"]
[Result "0-1"]
[WhiteElo "2586"]
[BlackElo "2457"]
[TimeControl "180+1"]
[EndTime "8:56:35 PST"]
[Termination "kuanysh1981 won by resignation"]

1. d4 {[%clk 0:03:00.9]} 1... Nf6 {[%clk 0:02:59.1]} 2. c4 {[%clk 0:03:00.6]}
2... e6 {[%clk 0:02:57.8]} 3. Nc3 {[%clk 0:02:59.7]} 3... d5 {[%clk 0:02:56.5]}
4. cxd5 {[%clk 0:02:59.1]} 4... exd5 {[%clk 0:02:55.5]} 5. Bg5 {[%clk
0:02:59.1]} 5... c6 {[%clk 0:02:55.4]} 6. e3 {[%clk 0:02:59.3]} 6... Be7 {[%clk
0:02:55.3]} 7. Bd3 {[%clk 0:02:59.3]} 7... O-O {[%clk 0:02:55.6]} 8. Qc2 {[%clk
0:02:57.3]} 8... h6 {[%clk 0:02:53.3]} 9. Bh4 {[%clk 0:02:56.9]} 9... Nbd7
{[%clk 0:02:49.7]} 10. Nf3 {[%clk 0:02:55.9]} 10... Re8 {[%clk 0:02:50.1]} 11.
O-O {[%clk 0:02:53.5]} 11... Ne4 {[%clk 0:02:47.6]} 12. Bxe7 {[%clk 0:02:51.3]}
12... Qxe7 {[%clk 0:02:47.4]} 13. Bxe4 {[%clk 0:02:51.4]} 13... dxe4 {[%clk
0:02:47.3]} 14. Nd2 {[%clk 0:02:52.3]} 14... f5 {[%clk 0:02:39.9]} 15. Rac1
{[%clk 0:02:32.8]} 15... Nf6 {[%clk 0:02:38.8]} 16. Nc4 {[%clk 0:02:29.2]} 16...
Be6 {[%clk 0:02:38.5]} 17. Ne5 {[%clk 0:02:28.8]} 17... Nd5 {[%clk 0:02:32.6]}
18. Nxd5 {[%clk 0:02:22]} 18... Bxd5 {[%clk 0:02:32.6]} 19. a3 {[%clk
0:02:14.5]} 19... Qf6 {[%clk 0:02:12.9]} 20. g3 {[%clk 0:01:55.9]} 20... g5
{[%clk 0:02:12.4]} 21. Qe2 {[%clk 0:01:55.6]} 21... Re7 {[%clk 0:02:10.3]} 22.
b4 {[%clk 0:01:46.1]} 22... a6 {[%clk 0:02:02.1]} 23. a4 {[%clk 0:01:32]} 23...
f4 {[%clk 0:02:02.1]} 24. exf4 {[%clk 0:01:21.6]} 24... gxf4 {[%clk 0:02:03]}
25. Qh5 {[%clk 0:01:16.1]} 25... Rg7 {[%clk 0:02:00.8]} 26. b5 {[%clk
0:00:51.8]} 26... axb5 {[%clk 0:02:00.3]} 27. axb5 {[%clk 0:00:52.7]} 27... e3
{[%clk 0:01:48.9]} 28. fxe3 {[%clk 0:00:50.7]} 28... Ra2 {[%clk 0:01:48.4]} 29.
Rxf4 {[%clk 0:00:46.6]} 29... Qe7 {[%clk 0:01:38.6]} 30. e4 {[%clk 0:00:36.2]}
30... Qa3 {[%clk 0:01:33.5]} 31. Rcf1 {[%clk 0:00:35.1]} 31... Qe3+ {[%clk
0:01:32.6]} 32. R4f2 {[%clk 0:00:23.7]} 32... Bxe4 {[%clk 0:01:27.3]} 33. Qe8+
{[%clk 0:00:18.4]} 33... Kh7 {[%clk 0:01:27]} 34. Nf7 {[%clk 0:00:18.4]} 34...
Rxg3+ {[%clk 0:01:25.3]} 0-1